[Event "*** Titled Tuesday Blitz"]
[Site "Chess.com"]
[Date "2021.03.02"]
[Round "2"]
[White "turayev_shahruh17"]
[Black "esapunov"]
[Result "0-1"]
[WhiteElo "2497"]
[BlackElo "2713"]
[TimeControl "180+1"]
[EndTime "10:18:21 PST"]
[Termination "esapunov won by checkmate"]

1. e4 {[%clk 0:02:22]} 1... c5 {[%clk 0:02:59.5]} 2. Nc3 {[%clk 0:02:20.9]} 2...
d6 {[%clk 0:02:58.1]} 3. Bc4 {[%clk 0:02:21]} 3... Nc6 {[%clk 0:02:57.6]} 4. d3
{[%clk 0:02:21.2]} 4... g6 {[%clk 0:02:56.1]} 5. f4 {[%clk 0:02:21.4]} 5... Bg7
{[%clk 0:02:56.3]} 6. Nf3 {[%clk 0:02:21.6]} 6... e6 {[%clk 0:02:56.8]} 7. O-O
{[%clk 0:02:21.9]} 7... Nge7 {[%clk 0:02:57.1]} 8. Qe1 {[%clk 0:02:22.3]} 8...
O-O {[%clk 0:02:56.6]} 9. f5 {[%clk 0:02:22.2]} 9... d5 {[%clk 0:02:52.6]} 10.
Bb3 {[%clk 0:02:22]} 10... c4 {[%clk 0:02:50]} 11. dxc4 {[%clk 0:02:21.7]} 11...
dxe4 {[%clk 0:02:50.1]} 12. f6 {[%clk 0:01:47.6]} 12... Bxf6 {[%clk 0:02:49.7]}
13. Nxe4 {[%clk 0:01:47.3]} 13... Bg7 {[%clk 0:02:50.2]} 14. Qh4 {[%clk
0:01:41.1]} 14... f6 {[%clk 0:02:41.7]} 15. c5 {[%clk 0:01:24.5]} 15... Nf5
{[%clk 0:02:35.7]} 16. Qh3 {[%clk 0:01:24.1]} 16... Na5 {[%clk 0:02:20.9]} 17.
g4 {[%clk 0:01:22]} 17... Nxb3 {[%clk 0:02:17.1]} 18. axb3 {[%clk 0:01:13.4]}
18... Nd4 {[%clk 0:02:15.6]} 19. Bh6 {[%clk 0:01:13.2]} 19... Nxf3+ {[%clk
0:02:06.6]} 20. Rxf3 {[%clk 0:01:11.6]} 20... Qd4+ {[%clk 0:02:05.5]} 21. Nf2
{[%clk 0:01:11.4]} 21... Qxc5 {[%clk 0:01:59.5]} 22. Bxg7 {[%clk 0:01:05.2]}
22... Kxg7 {[%clk 0:01:59.2]} 23. Rc3 {[%clk 0:01:05.5]} 23... Qe7 {[%clk
0:01:56.1]} 24. Rd1 {[%clk 0:01:04.3]} 24... e5 {[%clk 0:01:52.3]} 25. Qh4
{[%clk 0:01:04]} 25... h6 {[%clk 0:01:33.8]} 26. Rh3 {[%clk 0:00:57.4]} 26...
Rh8 {[%clk 0:01:32.9]} 27. Ne4 {[%clk 0:00:57.6]} 27... Be6 {[%clk 0:01:29.9]}
28. Rf3 {[%clk 0:00:52.7]} 28... Raf8 {[%clk 0:01:28.9]} 29. Rdf1 {[%clk
0:00:43.8]} 29... g5 {[%clk 0:01:25.2]} 30. Qf2 {[%clk 0:00:37.3]} 30... Bd5
{[%clk 0:01:23]} 31. Qe3 {[%clk 0:00:20.8]} 31... Bxe4 {[%clk 0:01:23]} 32. Qxe4
{[%clk 0:00:20.7]} 32... a6 {[%clk 0:01:19.1]} 33. c4 {[%clk 0:00:20.1]} 33...
Rf7 {[%clk 0:01:17.7]} 34. Kg2 {[%clk 0:00:20.2]} 34... Rd8 {[%clk 0:01:17.7]}
35. R1f2 {[%clk 0:00:18.5]} 35... Rd4 {[%clk 0:01:16.8]} 36. Qf5 {[%clk
0:00:18]} 36... Rf4 {[%clk 0:01:13.7]} 37. Rxf4 {[%clk 0:00:18.2]} 37... exf4
{[%clk 0:01:08.6]} 38. Rd2 {[%clk 0:00:18]} 38... Qe5 {[%clk 0:01:06.7]} 39.
Qxe5 {[%clk 0:00:13.9]} 39... fxe5 {[%clk 0:01:06.5]} 40. Kf3 {[%clk 0:00:14.8]}
40... Kf6 {[%clk 0:01:05.5]} 41. Ke4 {[%clk 0:00:15]} 41... Ke6 {[%clk
0:00:59.8]} 42. Rd5 {[%clk 0:00:13.4]} 42... f3 {[%clk 0:00:59.8]} 43. Rd1
{[%clk 0:00:12.7]} 43... Rf4+ {[%clk 0:00:58.5]} 44. Ke3 {[%clk 0:00:12.6]}
44... f2 {[%clk 0:00:58.4]} 45. Rf1 {[%clk 0:00:12.2]} 45... a5 {[%clk
0:00:58.2]} 46. Rxf2 {[%clk 0:00:12]} 46... Rxf2 {[%clk 0:00:57.4]} 47. Kxf2
{[%clk 0:00:12.9]} 47... e4 {[%clk 0:00:54.6]} 48. Ke2 {[%clk 0:00:12.8]} 48...
Kd6 {[%clk 0:00:53.4]} 49. Kd2 {[%clk 0:00:12.3]} 49... Kc5 {[%clk 0:00:51.2]}
50. Ke3 {[%clk 0:00:11.6]} 50... Kb4 {[%clk 0:00:51.9]} 51. Kxe4 {[%clk
0:00:11.9]} 51... Kxb3 {[%clk 0:00:52.5]} 52. Kf5 {[%clk 0:00:12.3]} 52... Kxb2
{[%clk 0:00:52.8]} 53. Kg6 {[%clk 0:00:13.2]} 53... a4 {[%clk 0:00:53.3]} 54.
Kxh6 {[%clk 0:00:14.1]} 54... a3 {[%clk 0:00:53.8]} 55. Kxg5 {[%clk 0:00:15]}
55... a2 {[%clk 0:00:54.1]} 56. Kh6 {[%clk 0:00:15.9]} 56... Kb3 {[%clk
0:00:54.5]} 57. g5 {[%clk 0:00:16.8]} 57... a1=Q {[%clk 0:00:54.7]} 58. g6
{[%clk 0:00:17.7]} 58... Qh8+ {[%clk 0:00:54.5]} 59. Kg5 {[%clk 0:00:16.7]}
59... Kxc4 {[%clk 0:00:54.5]} 60. g7 {[%clk 0:00:17.6]} 60... Qxg7+ {[%clk
0:00:54.2]} 61. Kf5 {[%clk 0:00:18.5]} 61... b5 {[%clk 0:00:54.4]} 62. Ke4
{[%clk 0:00:19.4]} 62... b4 {[%clk 0:00:54.6]} 63. Kf3 {[%clk 0:00:20.3]} 63...
b3 {[%clk 0:00:54.8]} 64. Ke2 {[%clk 0:00:21.2]} 64... b2 {[%clk 0:00:55.1]} 65.
Kf2 {[%clk 0:00:22.1]} 65... b1=Q {[%clk 0:00:55.3]} 66. Ke3 {[%clk 0:00:23]}
66... Qd3+ {[%clk 0:00:54.8]} 67. Kf2 {[%clk 0:00:22.9]} 67... Qf6+ {[%clk
0:00:53.2]} 68. Ke1 {[%clk 0:00:22.7]} 68... Qff1# {[%clk 0:00:52.9]} 0-1

[Event "*** Titled Tuesday Blitz"]
[Site "Chess.com"]
[Date "2021.03.02"]
[Round "2"]
[White "oganromchess"]
[Black "Faqade"]
[Result "0-1"]
[WhiteElo "2483"]
[BlackElo "2701"]
[TimeControl "180+1"]
[EndTime "10:18:22 PST"]
[Termination "Faqade won by resignation"]

1. e4 {[%clk 0:03:00.3]} 1... c5 {[%clk 0:02:59.8]} 2. Nf3 {[%clk 0:02:55.9]}
2... e6 {[%clk 0:02:59.3]} 3. d4 {[%clk 0:02:52.7]} 3... cxd4 {[%clk 0:03:00.2]}
4. Nxd4 {[%clk 0:02:52]} 4... Nc6 {[%clk 0:03:00.6]} 5. Nc3 {[%clk 0:02:50.6]}
5... Qc7 {[%clk 0:03:00.5]} 6. Be3 {[%clk 0:02:43.4]} 6... a6 {[%clk 0:02:59.3]}
7. g4 {[%clk 0:02:41.5]} 7... b5 {[%clk 0:02:50.8]} 8. Bg2 {[%clk 0:02:39.9]}
8... Bb7 {[%clk 0:02:50.1]} 9. O-O {[%clk 0:02:38.8]} 9... h5 {[%clk 0:02:50.2]}
10. g5 {[%clk 0:02:38]} 10... Ne5 {[%clk 0:02:50.2]} 11. Bf4 {[%clk 0:02:19.8]}
11... d6 {[%clk 0:02:48.8]} 12. h4 {[%clk 0:02:08.8]} 12... Nc4 {[%clk
0:02:29.1]} 13. b3 {[%clk 0:02:04.1]} 13... e5 {[%clk 0:01:42.1]} 14. bxc4
{[%clk 0:01:57.3]} 14... exf4 {[%clk 0:01:35.3]} 15. Nd5 {[%clk 0:01:54.6]}
15... Qxc4 {[%clk 0:01:31.2]} 16. Nb6 {[%clk 0:01:49.3]} 16... Qc7 {[%clk
0:01:29.5]} 17. Nxa8 {[%clk 0:01:48.5]} 17... Bxa8 {[%clk 0:01:30.4]} 18. a4
{[%clk 0:01:35.9]} 18... b4 {[%clk 0:01:28.6]} 19. Qd3 {[%clk 0:01:34.6]} 19...
Bb7 {[%clk 0:01:20.3]} 20. Rab1 {[%clk 0:01:28.9]} 20... a5 {[%clk 0:00:29.3]}
21. c3 {[%clk 0:01:23.7]} 21... f6 {[%clk 0:00:20]} 22. cxb4 {[%clk 0:01:16.4]}
22... fxg5 {[%clk 0:00:19.7]} 23. bxa5 {[%clk 0:01:09.3]} 23... Bc8 {[%clk
0:00:15.8]} 24. Rfc1 {[%clk 0:01:07.4]} 24... Qd7 {[%clk 0:00:14.9]} 25. Rb8
{[%clk 0:00:49.7]} 25... Ne7 {[%clk 0:00:14.8]} 26. Qb5 {[%clk 0:00:41.4]} 26...
Kf7 {[%clk 0:00:14]} 27. Rcxc8 {[%clk 0:00:32.3]} 27... Qg4 {[%clk 0:00:11.2]}
28. Qb3+ {[%clk 0:00:16.8]} 28... d5 {[%clk 0:00:10.7]} 29. exd5 {[%clk
0:00:15.6]} 29... Nxc8 {[%clk 0:00:10.4]} 30. d6+ {[%clk 0:00:14.2]} 30... Kf6
{[%clk 0:00:09]} 31. Qd5 {[%clk 0:00:09.2]} 31... Bxd6 {[%clk 0:00:02.2]} 32.
hxg5+ {[%clk 0:00:07.4]} 32... Qxg5 {[%clk 0:00:03.1]} 33. Qxg5+ {[%clk
0:00:06.8]} 33... Kxg5 {[%clk 0:00:03.2]} 34. a6 {[%clk 0:00:06.2]} 34... Bxb8
{[%clk 0:00:02.8]} 35. Ne6+ {[%clk 0:00:04.6]} 35... Kf6 {[%clk 0:00:02.6]} 36.
Nc5 {[%clk 0:00:04.3]} 36... Na7 {[%clk 0:00:03.5]} 37. Nd7+ {[%clk 0:00:04.7]}
37... Ke7 {[%clk 0:00:03.4]} 38. Nxb8 {[%clk 0:00:05.3]} 38... Rxb8 {[%clk
0:00:03.9]} 39. Bb7 {[%clk 0:00:04.9]} 39... Kd6 {[%clk 0:00:03.2]} 40. Kg2
{[%clk 0:00:04.9]} 40... g5 {[%clk 0:00:04.1]} 41. Kf3 {[%clk 0:00:05.8]} 41...
Ke5 {[%clk 0:00:04.3]} 0-1

[Event "*** Titled Tuesday Blitz"]
[Site "Chess.com"]
[Date "2021.03.02"]
[Round "2"]
[White "The_filthy"]
[Black "GarciaIsaac"]
[Result "1-0"]
[WhiteElo "2329"]
[BlackElo "2566"]
[TimeControl "180+1"]
[EndTime "10:18:23 PST"]
[Termination "The_filthy won by resignation"]

1. e4 {[%clk 0:03:00.9]} 1... c5 {[%clk 0:02:59.6]} 2. Nf3 {[%clk 0:03:01]} 2...
Nc6 {[%clk 0:02:59.5]} 3. d4 {[%clk 0:03:00.9]} 3... cxd4 {[%clk 0:02:59.8]} 4.
Nxd4 {[%clk 0:03:01.8]} 4... Nf6 {[%clk 0:02:59.3]} 5. Nc3 {[%clk 0:03:02.1]}
5... d6 {[%clk 0:02:55.8]} 6. Bg5 {[%clk 0:03:00.4]} 6... a6 {[%clk 0:02:54.1]}
7. f3 {[%clk 0:02:57.7]} 7... e6 {[%clk 0:02:52.2]} 8. Qd2 {[%clk 0:02:57.1]}
8... Bd7 {[%clk 0:02:51.9]} 9. O-O-O {[%clk 0:02:56.9]} 9... h6 {[%clk
0:02:50.1]} 10. Be3 {[%clk 0:02:57]} 10... h5 {[%clk 0:02:50.3]} 11. Kb1 {[%clk
0:02:56.6]} 11... Rc8 {[%clk 0:02:48.5]} 12. h3 {[%clk 0:02:56.8]} 12... b5
{[%clk 0:02:45.1]} 13. Bd3 {[%clk 0:02:56.3]} 13... Ne5 {[%clk 0:02:44.9]} 14.
f4 {[%clk 0:02:54.5]} 14... Nc4 {[%clk 0:02:43.8]} 15. Bxc4 {[%clk 0:02:51.9]}
15... Rxc4 {[%clk 0:02:44.7]} 16. e5 {[%clk 0:02:50.1]} 16... Rxc3 {[%clk
0:02:29.6]} 17. Qxc3 {[%clk 0:02:43.6]} 17... Ne4 {[%clk 0:02:29.2]} 18. Qd3
{[%clk 0:02:35.1]} 18... d5 {[%clk 0:02:28.8]} 19. Rhf1 {[%clk 0:02:22.9]} 19...
g6 {[%clk 0:02:18.8]} 20. Nf3 {[%clk 0:02:15]} 20... Qa5 {[%clk 0:01:58.7]} 21.
Nd2 {[%clk 0:01:52]} 21... Ng3 {[%clk 0:01:57.4]} 22. Rfe1 {[%clk 0:01:46.1]}
22... b4 {[%clk 0:01:51.5]} 23. Bb6 {[%clk 0:01:34.4]} 23... Qxb6 {[%clk
0:01:45.5]} 24. Qxg3 {[%clk 0:01:34.5]} 24... a5 {[%clk 0:01:43.7]} 25. Qf3
{[%clk 0:01:28.8]} 25... a4 {[%clk 0:01:40.9]} 26. Nf1 {[%clk 0:01:18]} 26...
Bc5 {[%clk 0:01:36.9]} 27. g4 {[%clk 0:01:12.3]} 27... a3 {[%clk 0:01:26]} 28.
b3 {[%clk 0:01:12]} 28... Bc6 {[%clk 0:01:06.3]} 29. f5 {[%clk 0:01:08.9]} 29...
hxg4 {[%clk 0:00:54.6]} 30. hxg4 {[%clk 0:01:08.6]} 30... d4 {[%clk 0:00:53.6]}
31. Qf4 {[%clk 0:01:02.7]} 31... gxf5 {[%clk 0:00:47.7]} 32. gxf5 {[%clk
0:01:01.4]} 32... Bd5 {[%clk 0:00:41.3]} 33. Ng3 {[%clk 0:00:52.5]} 33... Qc7
{[%clk 0:00:18.2]} 34. Ne4 {[%clk 0:00:43.2]} 34... Be7 {[%clk 0:00:18.2]} 35.
Rd3 {[%clk 0:00:31.8]} 35... Qc6 {[%clk 0:00:14.4]} 36. Nf6+ {[%clk 0:00:24.8]}
36... Bxf6 {[%clk 0:00:14.1]} 37. exf6 {[%clk 0:00:25.1]} 37... Kd7 {[%clk
0:00:06]} 38. fxe6+ {[%clk 0:00:21]} 38... fxe6 {[%clk 0:00:06.4]} 39. f7 {[%clk
0:00:19.1]} 39... Rf8 {[%clk 0:00:05.3]} 40. Qf6 {[%clk 0:00:16.4]} 40... Qd6
{[%clk 0:00:02.2]} 41. Rxd4 {[%clk 0:00:14.6]} 41... Qe7 {[%clk 0:00:02.4]} 42.
Qxe7+ {[%clk 0:00:12.6]} 42... Kxe7 {[%clk 0:00:02.3]} 43. Rxd5 {[%clk 0:00:13]}
43... Rxf7 {[%clk 0:00:02.9]} 44. Rdd1 {[%clk 0:00:12.1]} 44... Rf2 {[%clk
0:00:02.4]} 45. Re4 {[%clk 0:00:11.7]} 1-0

[Event "*** Titled Tuesday Blitz"]
[Site "Chess.com"]
[Date "2021.03.02"]
[Round "2"]
[White "cstevens1"]
[Black "Piacramling"]
[Result "1-0"]
[WhiteElo "2619"]
[BlackElo "2319"]
[TimeControl "180+1"]
[EndTime "10:18:24 PST"]
[Termination "cstevens1 won on time"]

1. e4 {[%clk 0:03:00.9]} 1... c5 {[%clk 0:02:58.9]} 2. Nf3 {[%clk 0:03:01.1]}
2... e6 {[%clk 0:02:59]} 3. d4 {[%clk 0:03:01.5]} 3... cxd4 {[%clk 0:02:59.1]}
4. Nxd4 {[%clk 0:03:02.4]} 4... Nf6 {[%clk 0:02:58.7]} 5. Nc3 {[%clk 0:03:01.5]}
5... Nc6 {[%clk 0:02:58.7]} 6. Be2 {[%clk 0:02:59.9]} 6... d6 {[%clk 0:02:52.2]}
7. O-O {[%clk 0:03:00]} 7... Be7 {[%clk 0:02:51.3]} 8. Kh1 {[%clk 0:03:00.4]}
8... a6 {[%clk 0:02:48.1]} 9. f4 {[%clk 0:03:00.6]} 9... Bd7 {[%clk 0:02:46.8]}
10. Nf3 {[%clk 0:03:01.1]} 10... e5 {[%clk 0:02:41.6]} 11. f5 {[%clk 0:02:50.5]}
11... b5 {[%clk 0:02:37.4]} 12. a3 {[%clk 0:02:45.5]} 12... Rc8 {[%clk
0:02:33.5]} 13. Bg5 {[%clk 0:02:43.3]} 13... O-O {[%clk 0:02:08.2]} 14. Bxf6
{[%clk 0:02:42.8]} 14... Bxf6 {[%clk 0:02:07]} 15. Nd5 {[%clk 0:02:43.2]} 15...
Nd4 {[%clk 0:01:56.3]} 16. c3 {[%clk 0:02:40.3]} 16... Nxf3 {[%clk 0:01:40.8]}
17. Rxf3 {[%clk 0:02:36.3]} 17... Rc6 {[%clk 0:01:18.9]} 18. Rd3 {[%clk
0:02:21.6]} 18... Bc8 {[%clk 0:01:15]} 19. a4 {[%clk 0:01:56.6]} 19... bxa4
{[%clk 0:01:13.7]} 20. Qxa4 {[%clk 0:01:41.4]} 20... Bd7 {[%clk 0:00:56]} 21.
Qa3 {[%clk 0:01:17.9]} 21... Rc5 {[%clk 0:00:43.6]} 22. Rad1 {[%clk 0:01:01.1]}
22... Bg5 {[%clk 0:00:32.3]} 23. Rg3 {[%clk 0:00:44.3]} 23... Bf4 {[%clk
0:00:18.5]} 24. Nxf4 {[%clk 0:00:24.7]} 24... exf4 {[%clk 0:00:16.8]} 25. Rg4
{[%clk 0:00:25.6]} 25... Qe7 {[%clk 0:00:13.3]} 26. Rxf4 {[%clk 0:00:24.7]}
26... Bxf5 {[%clk 0:00:07.8]} 27. Bf3 {[%clk 0:00:12.9]} 27... Bg6 {[%clk
0:00:07.7]} 28. Qxa6 {[%clk 0:00:10.9]} 28... Rd8 {[%clk 0:00:07.7]} 29. Qb6
{[%clk 0:00:08.7]} 29... Re5 {[%clk 0:00:06.9]} 30. Qd4 {[%clk 0:00:07.9]} 30...
h6 {[%clk 0:00:06.4]} 31. h4 {[%clk 0:00:06.9]} 31... Kh7 {[%clk 0:00:05.6]} 32.
h5 {[%clk 0:00:06.5]} 32... Qg5 {[%clk 0:00:05]} 33. hxg6+ {[%clk 0:00:05.3]}
33... fxg6 {[%clk 0:00:05.3]} 34. Rg4 {[%clk 0:00:05]} 34... Qh5+ {[%clk
0:00:04.8]} 35. Kg1 {[%clk 0:00:05.5]} 35... Rg5 {[%clk 0:00:04.7]} 36. Rxg5
{[%clk 0:00:05]} 36... Qxg5 {[%clk 0:00:05]} 37. e5 {[%clk 0:00:04.5]} 37... d5
{[%clk 0:00:04.1]} 38. Bxd5 {[%clk 0:00:04.3]} 38... Qg3 {[%clk 0:00:03.4]} 39.
b4 {[%clk 0:00:03.4]} 39... Rf8 {[%clk 0:00:02.8]} 40. c4 {[%clk 0:00:03.7]}
40... Rf4 {[%clk 0:00:02.6]} 41. Qd3 {[%clk 0:00:03]} 41... Qg4 {[%clk
0:00:02.1]} 42. Qe3 {[%clk 0:00:02.6]} 42... Qxd1+ {[%clk 0:00:01.1]} 43. Kh2
{[%clk 0:00:03.1]} 43... Rh4+ {[%clk 0:00:01]} 44. Kg3 {[%clk 0:00:04]} 1-0

[Event "*** Titled Tuesday Blitz"]
[Site "Chess.com"]
[Date "2021.03.02"]
[Round "2"]
[White "B-man"]
[Black "Grandelicious"]
[Result "1-0"]
[WhiteElo "2558"]
[BlackElo "2840"]
[TimeControl "180+1"]
[EndTime "10:18:25 PST"]
[Termination "B-man won by resignation"]

1. d4 {[%clk 0:03:00.9]} 1... d5 {[%clk 0:02:57.8]} 2. Nf3 {[%clk 0:02:59.5]}
2... e6 {[%clk 0:02:56.6]} 3. g3 {[%clk 0:02:54.8]} 3... b6 {[%clk 0:02:54.9]}
4. Bg2 {[%clk 0:02:54.6]} 4... Bb7 {[%clk 0:02:55.4]} 5. O-O {[%clk 0:02:54.6]}
5... Nd7 {[%clk 0:02:53.7]} 6. a4 {[%clk 0:02:42.2]} 6... a5 {[%clk 0:02:45.9]}
7. Nc3 {[%clk 0:02:33.7]} 7... Bb4 {[%clk 0:02:42.9]} 8. Bg5 {[%clk 0:02:20.8]}
8... Ne7 {[%clk 0:02:30.7]} 9. Na2 {[%clk 0:01:57.7]} 9... Bd6 {[%clk
0:02:30.6]} 10. Nc1 {[%clk 0:01:54.6]} 10... O-O {[%clk 0:02:25.1]} 11. Nd3
{[%clk 0:01:49.8]} 11... f6 {[%clk 0:02:25.4]} 12. Bf4 {[%clk 0:01:49.1]} 12...
Ng6 {[%clk 0:02:13.5]} 13. Bxd6 {[%clk 0:01:35.8]} 13... cxd6 {[%clk 0:02:14.4]}
14. Nf4 {[%clk 0:01:36.1]} 14... Nxf4 {[%clk 0:02:09.5]} 15. gxf4 {[%clk
0:01:37]} 15... Qe7 {[%clk 0:02:00.6]} 16. c3 {[%clk 0:01:27.9]} 16... Rad8
{[%clk 0:01:52.8]} 17. e3 {[%clk 0:01:22.3]} 17... Kh8 {[%clk 0:01:48.8]} 18.
Kh1 {[%clk 0:01:17.5]} 18... f5 {[%clk 0:01:25.2]} 19. b4 {[%clk 0:01:16.1]}
19... Nf6 {[%clk 0:01:19.1]} 20. Nd2 {[%clk 0:01:12.9]} 20... Rc8 {[%clk
0:01:12.6]} 21. Rc1 {[%clk 0:01:11.4]} 21... Ba6 {[%clk 0:01:07.8]} 22. b5
{[%clk 0:01:09.8]} 22... Bb7 {[%clk 0:01:07.7]} 23. c4 {[%clk 0:01:10]} 23...
dxc4 {[%clk 0:01:05.1]} 24. Nxc4 {[%clk 0:01:06.8]} 24... Ng4 {[%clk 0:00:54.9]}
25. h3 {[%clk 0:00:46.2]} 25... Bxg2+ {[%clk 0:00:33.5]} 26. Kxg2 {[%clk
0:00:47.1]} 26... Nf6 {[%clk 0:00:34.4]} 27. f3 {[%clk 0:00:44.6]} 27... Nd5
{[%clk 0:00:33.3]} 28. Qd2 {[%clk 0:00:43.7]} 28... Rf6 {[%clk 0:00:28.9]} 29.
Kh2 {[%clk 0:00:27.7]} 29... Rg6 {[%clk 0:00:27.8]} 30. Nxd6 {[%clk 0:00:23.9]}
30... Rf8 {[%clk 0:00:19.4]} 31. Nc4 {[%clk 0:00:15.7]} 31... Qh4 {[%clk
0:00:19.2]} 32. Rg1 {[%clk 0:00:16.2]} 32... Rc8 {[%clk 0:00:13.1]} 33. Ne5
{[%clk 0:00:13.9]} 33... Rxc1 {[%clk 0:00:13.2]} 34. Nxg6+ {[%clk 0:00:13.2]}
34... hxg6 {[%clk 0:00:12.8]} 35. Qxc1 {[%clk 0:00:13.8]} 35... Qf2+ {[%clk
0:00:12.8]} 36. Rg2 {[%clk 0:00:14.4]} 36... Qxf3 {[%clk 0:00:12.5]} 37. Qc8+
{[%clk 0:00:11.8]} 37... Kh7 {[%clk 0:00:12.9]} 38. Qxe6 {[%clk 0:00:12.4]}
38... Nf6 {[%clk 0:00:11.7]} 39. d5 {[%clk 0:00:09.1]} 39... Qxd5 {[%clk
0:00:07.3]} 40. Qxd5 {[%clk 0:00:09.2]} 40... Nxd5 {[%clk 0:00:08.2]} 41. Rc2
{[%clk 0:00:08.6]} 41... g5 {[%clk 0:00:03.3]} 42. Rc6 {[%clk 0:00:05.5]} 42...
gxf4 {[%clk 0:00:01.7]} 43. exf4 {[%clk 0:00:06.4]} 43... g6 {[%clk 0:00:02.2]}
44. Rd6 {[%clk 0:00:06.8]} 44... Nxf4 {[%clk 0:00:02.4]} 45. Rxb6 {[%clk
0:00:07.4]} 45... Nd3 {[%clk 0:00:01.9]} 46. Ra6 {[%clk 0:00:05.5]} 46... Nb2
{[%clk 0:00:02.8]} 47. b6 {[%clk 0:00:05.3]} 1-0

[Event "*** Titled Tuesday Blitz"]
[Site "Chess.com"]
[Date "2021.03.02"]
[Round "2"]
[White "GasconJR"]
[Black "NoGuru"]
[Result "0-1"]
[WhiteElo "2461"]
[BlackElo "2299"]
[TimeControl "180+1"]
[EndTime "10:18:25 PST"]
[Termination "NoGuru won by resignation"]

1. d4 {[%clk 0:03:00.9]} 1... d5 {[%clk 0:02:59.8]} 2. c4 {[%clk 0:02:57.7]}
2... e6 {[%clk 0:03:00]} 3. Nc3 {[%clk 0:02:55.9]} 3... Be7 {[%clk 0:02:59.9]}
4. Nf3 {[%clk 0:02:55]} 4... Nf6 {[%clk 0:02:59.9]} 5. Bf4 {[%clk 0:02:52.9]}
5... O-O {[%clk 0:02:59.2]} 6. e3 {[%clk 0:02:51.1]} 6... Nbd7 {[%clk
0:02:58.7]} 7. c5 {[%clk 0:02:45.8]} 7... c6 {[%clk 0:02:58]} 8. h3 {[%clk
0:02:43.4]} 8... b6 {[%clk 0:02:57.1]} 9. b4 {[%clk 0:02:43.4]} 9... a5 {[%clk
0:02:57.4]} 10. a3 {[%clk 0:02:44.1]} 10... h6 {[%clk 0:02:57.9]} 11. Be2 {[%clk
0:02:39.7]} 11... Ba6 {[%clk 0:02:56.5]} 12. Bxa6 {[%clk 0:02:34.9]} 12... Rxa6
{[%clk 0:02:55.8]} 13. b5 {[%clk 0:02:35.4]} 13... cxb5 {[%clk 0:02:51.9]} 14.
c6 {[%clk 0:02:34.5]} 14... Qc8 {[%clk 0:02:51.2]} 15. Nxb5 {[%clk 0:02:22.2]}
15... Qxc6 {[%clk 0:02:51]} 16. Nc7 {[%clk 0:02:14]} 16... Qc3+ {[%clk
0:02:24.5]} 17. Nd2 {[%clk 0:02:01.7]} 17... e5 {[%clk 0:01:43.7]} 18. dxe5
{[%clk 0:02:00.9]} 18... Qxc7 {[%clk 0:01:35.8]} 19. exf6 {[%clk 0:01:59.7]}
19... Bd6 {[%clk 0:01:24]} 20. Bxd6 {[%clk 0:01:59.4]} 20... Qxd6 {[%clk
0:01:23.9]} 21. fxg7 {[%clk 0:01:59.9]} 21... Re8 {[%clk 0:01:17.7]} 22. O-O
{[%clk 0:01:58.4]} 22... Qg6 {[%clk 0:00:50.1]} 23. Nf3 {[%clk 0:01:52.3]} 23...
Nf6 {[%clk 0:00:49.6]} 24. Rc1 {[%clk 0:01:37.8]} 24... b5 {[%clk 0:00:46.3]}
25. Rc7 {[%clk 0:01:34.1]} 25... Rb6 {[%clk 0:00:37.9]} 26. Qd4 {[%clk
0:01:28.9]} 26... Reb8 {[%clk 0:00:35.5]} 27. Ne5 {[%clk 0:01:27.6]} 27... Qe4
{[%clk 0:00:33.2]} 28. Rxf7 {[%clk 0:01:18.9]} 28... Qxd4 {[%clk 0:00:30]} 29.
exd4 {[%clk 0:01:19]} 29... b4 {[%clk 0:00:24.2]} 30. axb4 {[%clk 0:00:56.3]}
30... axb4 {[%clk 0:00:23.5]} 31. Rxf6 {[%clk 0:00:15.9]} 31... Rxf6 {[%clk
0:00:22.4]} 32. Nd7 {[%clk 0:00:16.4]} 32... Rfb6 {[%clk 0:00:22.2]} 33. Nxb8
{[%clk 0:00:16.3]} 33... Rxb8 {[%clk 0:00:21.8]} 34. Rb1 {[%clk 0:00:17]} 34...
b3 {[%clk 0:00:20.3]} 35. Kf1 {[%clk 0:00:17.9]} 35... Kxg7 {[%clk 0:00:20.6]}
36. Ke2 {[%clk 0:00:18.5]} 36... Kf6 {[%clk 0:00:20.8]} 37. Kd3 {[%clk
0:00:18.7]} 37... Kf5 {[%clk 0:00:20.7]} 38. Kc3 {[%clk 0:00:15.7]} 38... Ke4
{[%clk 0:00:20.7]} 39. Re1+ {[%clk 0:00:15.3]} 39... Kf4 {[%clk 0:00:20.5]} 40.
Kb2 {[%clk 0:00:15.2]} 40... Rb4 {[%clk 0:00:19.3]} 41. Re6 {[%clk 0:00:11.9]}
41... Rxd4 {[%clk 0:00:18.8]} 42. Rxh6 {[%clk 0:00:11.8]} 42... Kg5 {[%clk
0:00:16]} 43. Kxb3 {[%clk 0:00:12.7]} 43... Kxh6 {[%clk 0:00:15.3]} 44. Kc3
{[%clk 0:00:12.9]} 44... Rf4 {[%clk 0:00:15.5]} 45. f3 {[%clk 0:00:11.8]} 45...
Rf8 {[%clk 0:00:15.6]} 46. Kd4 {[%clk 0:00:11.8]} 46... Rd8 {[%clk 0:00:15.8]}
47. f4 {[%clk 0:00:08.8]} 47... Kh5 {[%clk 0:00:16]} 48. g3 {[%clk 0:00:08.9]}
48... Rd7 {[%clk 0:00:15.5]} 49. f5 {[%clk 0:00:03.5]} 49... Kg5 {[%clk
0:00:15.7]} 50. g4 {[%clk 0:00:03.8]} 50... Rd8 {[%clk 0:00:12.6]} 51. Ke5
{[%clk 0:00:03.6]} 51... d4 {[%clk 0:00:12.4]} 0-1